bitfinex/quotes_ETHUSD_20220308
["timestamp","ask_amount","ask_price","bid_price","bid_amount"]
[1646705172700,0.00532334,2520.9,2520.8,6.52425976]
[1646705172903,0.71686331,2521.6,2520.9,4.5]
[1646705173100,0.71686331,2521.6,2521.2,1.98352]
[1646705173301,0.71686331,2521.7,2521.2,2.9753668]
[1646705173605,1.58558027,2521.7,2521.2,1.2918468]
[1646705174002,1.58558027,2521.6,2521.2,1.2918468]
[1646705174203,0.86871696,2521.5,2521.2,1.2918468]
[1646705174448,0.86871696,2521.4,2521.2,1.2918468]
[1646705174651,0.86871696,2521.3,2521.2,1.2918468]
[1646705175051,0.71686331,2521.6,2521.2,1.2918468]
[1646705175251,0.86871696,2521.5,2521.2,1.2918468]
[1646705175454,0.86871696,2521.4,2521.2,1.2918468]
[1646705175651,0.86871696,2521.3,2521.2,1.2918468]
[1646705176656,1.58558027,2521.7,2521.2,1.2918468]
[1646705176856,0.99268884,2521.4,2521.2,0.3]
[1646705177057,0.86871696,2521.3,2521.2,0.3]
[1646705177258,0.86871696,2521.3,2520.9,1.9841149]
[1646705177457,0.86871696,2521.3,2520.9,2.2841149]
[1646705177858,0.86871696,2521.3,2520.5,2.9760225]
[1646705177859,0.92287394,2520.9,2520.7,0.9922319]
[1646705178209,0.86871696,2520.8,2520.7,0.9922319]
[1646705178397,0.86871696,2520.8,2520.4,0.00532482]
[1646705178598,0.86871696,2520.8,2520.3,1.98341472]
[1646705178599,4.0,2520.7,2520.3,1.98341472]
[1646705178799,0.86871696,2520.6,2520.3,1.98341472]
[1646705178998,0.92287394,2520.9,2520.3,1.98341472]
[1646705178999,0.86871696,2520.5,2520.3,1.98341472]
[1646705179201,0.86871696,2520.4,2520.3,2.97553843]
[1646705179399,0.86871696,2520.8,2520.3,3.70804265]
[1646705179599,0.92287394,2520.9,2520.3,2.97553843]
[1646705179600,0.86871696,2520.7,2520.3,2.97553843]
[1646705179800,0.86871696,2520.6,2520.3,3.27553843]
[1646705179999,0.86871696,2520.5,2520.3,3.27553843]
[1646705180201,0.92287394,2520.9,2520.4,0.9922924]
[1646705180400,0.86922728,2520.8,2520.4,0.9922924]
[1646705180808,0.86922728,2520.8,2520.3,2.28341472]
[1646705181305,0.95290031,2520.5,2520.3,2.28341472]
[1646705181503,0.86922728,2520.4,2520.3,2.28341472]
[1646705181704,0.71686331,2521.0,2520.3,2.28341472]
[1646705181705,0.00532342,2520.7,2520.3,2.28873907]
[1646705181979,0.86922728,2520.6,2520.3,2.28873907]
[1646705182578,0.86922728,2520.6,2520.4,1.16556547]
[1646705182778,0.86922728,2520.5,2520.4,2.45787777]
[1646705182980,0.00532329,2520.7,2520.4,3.18985314]
[1646705182981,0.86922728,2520.6,2520.4,3.18985314]
[1646705183180,0.86922728,2520.6,2520.4,2.15787777]
[1646705183383,0.00532329,2520.7,2520.5,0.73194365]
[1646705183580,0.00532329,2520.7,2520.5,2.71617585]
[1646705183783,0.90921153,2521.2,2520.6,0.7318109]
[1646705183980,0.86886104,2521.1,2520.6,0.7318109]
[1646705184180,0.00532335,2520.7,2520.6,0.7318109]
[1646705184381,0.00532335,2520.7,2520.6,1.7239109]
[1646705184980,0.71686331,2521.5,2520.6,5.6173109]
[1646705185184,0.86891784,2521.5,2520.7,2.7158068]
[1646705185381,0.86891784,2521.5,2520.8,4.2318109]
[1646705185580,0.86891784,2521.5,2520.9,0.7318109]
[1646705186014,0.86891784,2521.5,2521.4,1.11843978]
[1646705186209,0.86891784,2521.5,2521.4,1.41191852]
[1646705186711,1.91196573,2522.5,2521.4,1.41191852]
[1646705186712,0.86891784,2521.7,2521.4,1.41191852]
[1646705187009,0.71686331,2521.9,2521.4,1.41191852]
[1646705187010,0.86891784,2521.6,2521.4,1.41191852]
[1646705187210,0.86891784,2521.5,2521.4,1.41191852]
[1646705187409,1.0457813,2521.9,2521.4,3.39549092]
[1646705187611,0.86891784,2521.8,2521.4,3.69549092]
[1646705187815,0.00514601,2521.7,2521.4,4.69549092]
[1646705188111,0.86891784,2521.6,2521.4,4.69549092]
[1646705188311,0.86891784,2521.6,2521.4,4.39549092]
[1646705188913,0.86891784,2521.6,2521.4,2.66879963]
[1646705189111,0.86891784,2521.6,2521.4,1.55688111]
[1646705189311,0.86891784,2521.6,2521.4,0.55688111]
[1646705189957,0.71686331,2521.9,2521.4,0.55688111]
[1646705189958,0.86891784,2521.5,2521.4,0.55688111]
[1646705190161,0.86891784,2521.5,2521.4,0.85688111]
[1646705190561,0.86891784,2521.5,2521.4,0.55688111]
[1646705190763,0.86891784,2521.5,2521.4,0.85688111]
[1646705191465,0.81891784,2521.5,2521.4,0.85688111]
[1646705202131,0.81891784,2521.5,2521.4,0.3]
[1646705202331,0.81891784,2521.5,2521.3,1.2917771]
[1646705202733,0.72191808,2521.6,2521.3,1.2917771]
[1646705202933,1.87114495,2521.7,2521.3,1.2917771]
[1646705203132,1.15428164,2521.7,2521.3,1.2917771]
[1646705203332,0.00505481,2521.5,2521.3,1.2917771]
[1646705204134,0.71686331,2521.8,2521.3,1.2917771]
[1646705204334,0.71686331,2521.9,2521.3,1.2917771]
[1646705204552,0.00505476,2521.5,2521.3,1.2917771]
[1646705205154,0.00505476,2521.5,2521.3,2.2835771]
[1646705205355,0.71686331,2521.9,2521.3,2.2835771]
[1646705205756,0.00505476,2521.5,2521.3,2.2835771]
[1646705206358,0.00505476,2521.5,2521.3,2.8725951]
[1646705206558,0.71686331,2521.8,2521.3,2.8725951]
[1646705206762,0.71686331,2521.9,2521.3,2.8725951]
[1646705206958,0.71686331,2521.9,2521.3,3.8725951]
[1646705206959,0.00505476,2521.5,2521.3,3.8725951]
[1646705207761,0.71686331,2522.0,2521.3,3.8725951]
[1646705207960,0.71686331,2522.0,2521.6,0.86768965]
[1646705208211,0.71686331,2522.0,2521.6,2.15952005]
[1646705208603,0.71686331,2522.0,2521.6,1.2918304]
[1646705209003,0.71686331,2521.9,2521.3,3.13775143]
[1646705209204,0.72191782,2521.9,2521.3,2.13775143]
[1646705209407,0.72191782,2521.9,2521.3,3.13775143]
[1646705209804,0.72191782,2521.9,2521.4,1.1741704]
[1646705210204,0.71686331,2521.9,2521.6,0.9918304]
[1646705210405,0.00505464,2521.7,2521.6,0.9918304]
[1646705210812,0.72191795,2521.7,2521.3,0.55693343]
[1646705211013,0.71686331,2521.5,2520.9,1.9840222]
[1646705212157,1.06163422,2521.3,2520.9,1.9840222]
[1646705212358,0.80545869,2521.2,2520.9,2.2840222]
[1646705212758,1.522322,2521.2,2520.1,0.3966]
[1646705213058,5.5,2521.0,2520.2,0.79656303]
[1646705213657,6.21686331,2521.0,2519.9,0.77691219]
[1646705213857,0.9141536,2520.4,2519.9,1.66328864]
[1646705214058,0.9141536,2520.4,2519.9,1.66130709]
[1646705214858,0.9141536,2520.4,2519.9,0.7547]
[1646705215461,0.9141536,2520.4,2520.0,0.00491043]
[1646705216311,0.9141536,2520.4,2519.9,0.7547]
[1646705216511,0.9141536,2520.4,2520.1,0.0049104]
[1646705217312,1.63101691,2520.4,2520.1,0.0049104]
[1646705217512,1.63101691,2520.4,2519.9,0.7547]
[1646705217513,0.99272,2520.3,2519.9,0.7547]
[1646705217713,0.99272,2520.3,2520.1,0.00491036]
[1646705217913,1.23136874,2520.2,2520.1,0.00491036]
[1646705218713,1.23136874,2520.2,2519.9,0.7547]
[1646705218913,1.23136874,2520.2,2520.0,0.00473974]
[1646705219957,1.23136874,2520.2,2519.7,0.20868138]
[1646705220156,1.23136874,2520.2,2520.0,0.00473978]
[1646705220866,1.23136874,2520.2,2520.0,3.978e-05]
[1646705220867,2.22415874,2520.2,2520.0,3.978e-05]
[1646705221074,2.94102205,2520.2,2519.2,0.00198155]
[1646705221265,6.88852205,2520.2,2519.2,0.00198155]
[1646705221473,0.71686331,2520.1,2520.0,0.00473978]
[1646705221666,1.20786331,2520.1,2520.0,0.00473978]
[1646705222065,0.491,2520.1,2520.0,0.00473978]
[1646705222368,0.99287,2520.0,2519.0,0.92364059]
[1646705222567,1.06828373,2519.5,2519.0,0.92364059]
[1646705222866,9.3549,2520.1,2519.0,1.22364059]
[1646705223064,8.3549,2520.1,2519.0,1.22364059]
[1646705223308,9.3549,2520.1,2519.0,1.22364059]
[1646705223709,0.99286,2520.0,2518.9,0.3143026]
[1646705223909,0.99286,2520.0,2518.9,0.0143026]
[1646705224107,0.99288,2519.9,2518.9,0.3143026]
[1646705224312,0.99286,2520.0,2518.9,0.0143026]
[1646705224507,0.99286,2520.0,2518.7,1.25911415]
[1646705224508,6.49286,2520.0,2518.7,1.25911415]
[1646705224708,7.49286,2520.0,2518.7,1.25911415]
[1646705224912,1.04187631,2519.4,2518.8,1.02212378]
[1646705225110,1.04187631,2519.4,2518.8,2.01501158]
[1646705225316,1.04187631,2519.4,2518.8,0.9928878]
[1646705225511,1.04187631,2519.4,2518.6,1.9856956]
[1646705225714,1.98117631,2519.4,2518.5,0.03885326]
[1646705226114,0.99316,2519.3,2518.5,0.03885326]
[1646705226314,1.04187631,2519.4,2519.0,0.00532191]
[1646705227157,1.04187631,2519.4,2518.5,0.03885326]
[1646705227360,1.04187631,2519.4,2519.1,0.00532183]
[1646705228358,5.49302,2519.6,2518.5,2.24190107]
[1646705228559,4.5,2519.6,2519.1,0.00532179]
[1646705228761,5.0,2519.5,2518.5,1.26851322]
[1646705229061,4.5,2519.6,2518.5,0.33699381]
[1646705229062,3.5,2519.4,2518.5,0.33699381]
[1646705229260,5.6251,2519.6,2518.5,0.03699381]
[1646705229460,4.6251,2519.6,2518.5,2.02291671]
[1646705229661,5.6251,2519.6,2518.6,0.3]
[1646705229862,1.15234715,2519.2,2518.6,0.25]
[1646705230067,1.15234715,2519.2,2518.7,1.16093989]
[1646705230263,5.6251,2519.6,2518.5,1.02992381]
[1646705230911,0.00516183,2519.1,2518.6,0.00516286]
[1646705231310,0.00516183,2519.1,2518.7,0.9929016]
[1646705231610,1.08230294,2519.1,2518.7,0.9929016]
[1646705231812,1.07714111,2519.1,2518.5,1.48071764]
[1646705232210,0.00516186,2519.0,2518.6,0.00516279]
[1646705233214,1.07714111,2519.1,2518.5,0.03699381]
[1646705233415,0.00516193,2518.9,2518.6,0.00516265]
[1646705233816,0.00516193,2518.9,2518.4,0.02527236]
[1646705234216,3.5,2519.4,2518.4,0.02527236]
[1646705234217,1.11774231,2518.7,2518.4,0.02527236]
[1646705234452,4.9817,2519.3,2518.4,0.02527236]
[1646705234655,4.9817,2519.3,2518.4,1.01828266]
[1646705235459,5.85709163,2519.3,2518.7,1.13363947]
[1646705235657,0.87539163,2519.3,2518.7,1.13363947]
[1646705236259,0.87539163,2519.3,2518.4,1.01828266]
[1646705237060,0.87539163,2519.3,2518.4,0.02527236]
[1646705237260,0.87539163,2519.3,2518.4,0.01875136]
[1646705237261,0.93893604,2518.9,2518.4,0.01875136]
[1646705238307,0.00532165,2518.8,2518.5,0.00532235]
[1646705239107,3.5,2519.2,2518.4,0.01875136]
[1646705239306,6.07930247,2519.3,2518.4,0.01875136]
[1646705239307,0.00532165,2518.8,2518.5,0.00532235]
[1646705240314,1.00504023,2519.0,2518.4,0.01875136]
[1646705240709,0.00343172,2518.8,2518.4,0.01875136]
[1646705241513,1.00504023,2519.0,2518.4,0.01875136]
[1646705241713,0.00343166,2518.8,2518.4,0.01875136]
[1646705242353,0.00343166,2518.8,2518.4,0.01786271]
[1646705242753,3.5,2518.9,2518.4,0.01786271]
[1646705242955,0.0053095,2518.8,2518.5,0.0053102]
[1646705243553,1.02141618,2518.6,2518.5,0.0053102]
[1646705243957,1.02141618,2518.6,2518.4,0.01786271]
[1646705244155,1.02141618,2518.6,2518.5,0.00531026]
[1646705244556,4.52141618,2518.6,2518.5,0.00531026]
[1646705245159,4.52141618,2518.6,2518.4,0.01863271]
[1646705245363,3.5,2518.5,2518.4,1.083e-05]
[1646705245557,5.5,2518.4,2518.2,0.0183532]
[1646705245815,3.5,2518.3,2518.2,0.0183532]
[1646705246209,3.5,2518.3,2518.1,0.0707534]
[1646705246210,0.0182468,2518.2,2518.1,0.0707534]
[1646705246413,0.0182468,2518.2,2517.1,0.0185684]
[1646705246414,5.5,2518.0,2517.3,0.09764485]
[1646705246611,5.5,2518.0,2517.3,0.0957294]
[1646705246612,5.9786318,2517.9,2517.3,0.0957294]
[1646705246811,1.5,2517.7,2517.3,0.0957294]
[1646705247017,2.4938029,2517.7,2517.3,0.0957294]
[1646705247217,3.5,2517.6,2517.3,0.0957294]
[1646705247412,2.20441045,2517.6,2517.3,0.0957294]
[1646705247616,4.19204045,2517.6,2517.3,0.0957294]
[1646705247812,4.19204045,2517.6,2517.4,0.00187751]
[1646705248612,7.69204045,2517.6,2517.3,0.0957294]
[1646705249012,7.69204045,2517.6,2517.4,0.00187751]
[1646705249214,4.19204045,2517.6,2517.4,0.00187751]
[1646705249960,4.19204045,2517.6,2517.3,0.0957294]
[1646705250162,4.19204045,2517.6,2517.4,0.00530997]
[1646705251067,4.19204045,2517.6,2517.3,0.0957294]
[1646705251467,4.19204045,2517.6,2517.4,0.00530997]
[1646705252364,4.19204045,2517.6,2517.3,0.0957294]
[1646705252565,4.19204045,2517.6,2517.4,0.00513076]
[1646705253219,2.98143,2517.6,2517.4,0.00513076]
[1646705253406,1.98763,2517.6,2517.4,0.00513076]
[1646705253610,1.5,2517.7,2517.3,0.0957294]
[1646705253806,1.5,2517.7,2517.4,0.00513076]
[1646705254408,1.5,2517.7,2517.6,0.98968922]
[1646705254409,0.08882638,2517.7,2517.6,0.98968922]
[1646705255215,0.08882638,2517.7,2517.4,0.00513073]
[1646705256016,0.08882638,2517.7,2517.3,0.0957294]
[1646705256217,0.08882638,2517.7,2517.4,0.00507822]
[1646705257057,0.08882638,2517.7,2517.3,1.18271417]
[1646705257457,0.08882638,2517.7,2517.4,0.00507822]
[1646705258260,0.08882638,2517.7,2517.3,1.18271417]
[1646705258663,0.08882638,2517.7,2517.4,0.00507822]
[1646705259460,0.08882638,2517.7,2517.3,0.0957294]
[1646705259860,0.08882638,2517.7,2517.4,0.00503491]
[1646705260723,0.08882638,2517.7,2517.3,0.0957294]
[1646705261212,0.08882638,2517.7,2517.4,0.00503491]
[1646705262011,0.08882638,2517.7,2517.3,0.0957294]
[1646705262211,0.08882638,2517.7,2517.4,0.00503491]
[1646705263112,0.08882638,2517.7,2517.3,0.0957294]
[1646705263317,0.08882638,2517.7,2517.4,0.00503784]
[1646705263915,0.99372,2517.6,2517.4,0.00503784]
[1646705264312,3.5,2517.5,2517.3,0.0957294]
[1646705264778,0.08882638,2517.7,2517.4,0.00503784]
[1646705265074,3.16019865,2517.5,2517.4,0.00503784]
[1646705265275,7.65405865,2517.5,2517.4,0.00503784]
[1646705265476,7.65405865,2517.5,2517.3,0.0957294]
[1646705265780,8.64797565,2517.5,2517.4,0.00503784]
[1646705266781,8.64797565,2517.5,2517.3,0.0957294]
[1646705266983,3.5,2517.4,2517.3,0.1007671]
[1646705267985,3.5,2517.4,2517.3,0.0957294]
[1646705268607,1.0896378,2517.3,2517.1,0.0185684]
[1646705268807,6.35153911,2517.2,2517.1,0.0185684]
[1646705269007,0.99408,2517.0,2516.5,0.02188095]
[1646705269209,0.99408,2517.0,2516.8,0.0558346]
[1646705269406,2.17718,2517.0,2516.8,0.0558346]
[1646705269606,3.17718,2517.0,2516.8,0.0558346]
[1646705269806,3.00770998,2516.9,2516.8,0.0558346]
[1646705271317,1.01940998,2516.9,2516.8,0.0558346]
[1646705272962,1.01940998,2516.9,2516.8,3.46e-05]
[1646705273163,7.66965021,2516.9,2516.8,3.46e-05]
[1646705273462,8.66965021,2516.9,2516.8,3.46e-05]
[1646705273662,9.66965021,2516.9,2516.8,3.46e-05]
[1646705274463,9.66965021,2516.9,2516.1,0.05769415]
[1646705274464,5.5,2516.8,2516.1,0.0182135]
[1646705274664,5.5,2516.8,2516.1,0.01629805]
[1646705274665,0.99426,2516.5,2516.1,0.01629805]
[1646705274862,3.5,2516.4,2516.1,0.01629805]
[1646705275263,3.5,2516.6,2516.1,0.01629805]
[1646705275466,1.0,2516.3,2516.1,0.01629805]
[1646705275724,1.12441385,2516.2,2516.1,0.01629805]
[1646705275915,1.12441385,2516.2,2516.1,0.01304805]
[1646705280063,1.0,2516.3,2516.1,0.01304805]
[1646705280262,1.5,2516.4,2516.1,0.01304805]
[1646705281468,1.5,2516.4,2516.1,0.01832704]
[1646705282465,1.5,2516.4,2516.1,0.01304805]
[1646705282667,2.49421,2516.4,2516.1,0.01814826]
[1646705283408,0.96370626,2516.2,2516.1,0.01814826]
[1646705283609,1.5,2516.4,2516.1,0.01304805]
[1646705283813,1.5,2516.4,2516.1,0.01814826]
[1646705284514,1.5,2516.4,2516.2,1.12846431]
[1646705284914,0.02613799,2516.3,2516.2,1.12846431]
[1646705285919,0.02613799,2516.3,2516.1,0.01304805]
[1646705286418,0.02613799,2516.3,2516.1,0.01800384]
[1646705287076,0.87935827,2516.2,2516.1,0.01800384]
[1646705287378,0.87935827,2516.2,2516.1,0.01304805]
[1646705287574,0.87935827,2516.2,2516.1,0.01800387]
[1646705288180,4.37935827,2516.2,2516.1,0.01800387]
[1646705288383,4.37935827,2516.2,2516.1,0.01304805]
[1646705289177,0.87935827,2516.2,2516.1,0.01304805]
[1646705289377,0.02613799,2516.3,2516.1,0.01304805]
[1646705291018,0.02613799,2516.3,2516.1,0.01808144]
[1646705291915,0.02613799,2516.3,2516.1,0.01304805]
[1646705292117,0.02613799,2516.3,2516.1,1.24484805]
[1646705292314,0.02613799,2516.3,2516.2,0.73508359]
[1646705294319,0.02613799,2516.3,2516.2,1.12848359]
[1646705294561,1.5,2516.4,2516.2,0.73508359]
[1646705294562,0.12938397,2516.4,2516.2,0.73508359]
[1646705295169,0.07938397,2516.4,2516.2,0.73508359]
[1646705295565,0.07938397,2516.4,2516.3,0.98042684]
[1646705295766,0.07938397,2516.4,2516.3,1.71551043]
[1646705297571,4.42846623,2517.6,2516.3,1.71551043]
[1646705297572,3.15152794,2517.6,2516.4,5.5]
[1646705297772,0.00219247,2517.4,2516.9,0.89925162]
[1646705297971,0.88767057,2517.4,2516.9,0.89925162]
[1646705298410,0.8854781,2517.3,2516.9,0.89925162]
[1646705298709,0.8854781,2517.3,2516.9,2.19277162]
[1646705298710,0.00219247,2517.3,2516.9,2.19277162]
[1646705298916,0.00219247,2517.3,2516.9,14.71617162]
[1646705299317,0.00219247,2517.3,2517.0,1.10281605]
[1646705299513,0.00219247,2517.3,2517.1,0.99343]
[1646705300816,0.00219247,2517.3,2517.1,0.99845485]
[1646705301618,0.00219247,2517.3,2517.1,0.99343]
[1646705302093,0.00219247,2517.3,2517.1,0.99845485]
[1646705302290,0.00219247,2517.3,2517.1,0.00502485]
[1646705302892,0.00219247,2517.3,2516.9,1.49360247]
[1646705303291,0.00219247,2517.3,2517.1,0.00502485]
[1646705303691,0.8884617,2517.3,2517.1,0.00413185]
[1646705303891,0.00219247,2517.3,2517.1,0.00413185]
[1646705304292,0.00089748,2517.1,2516.9,2.48714247]
[1646705304493,0.00308995,2517.1,2516.9,2.48714247]
[1646705305495,0.00308995,2517.1,2516.9,3.48068247]
[1646705305723,0.00308995,2517.1,2517.0,0.71053059]
[1646705306315,0.00308995,2517.1,2517.0,4.51053059]
[1646705306716,0.00308995,2517.1,2517.0,5.51053059]
[1646705308120,0.00308995,2517.1,2517.0,18.23253059]
[1646705308322,0.00308995,2517.1,2517.0,18.72353059]
[1646705309216,0.00308995,2517.1,2517.0,2.70013059]
[1646705309462,0.00308995,2517.1,2517.0,2.73368124]
[1646705309664,0.00308995,2517.1,2517.0,1.73368124]
[1646705310063,0.00219247,2517.1,2517.0,1.73368124]
[1646705310668,0.00219247,2517.1,2517.0,0.52455065]
[1646705310868,0.00219247,2517.1,2517.0,0.03355065]
[1646705311067,0.83795987,2517.5,2517.0,0.03355065]
[1646705311269,1.21747952,2517.6,2517.0,1.02705065]
[1646705311866,1.21747952,2517.6,2517.0,2.13882606]
[1646705312869,1.21747952,2517.6,2517.0,2.14412521]
[1646705313069,1.21747952,2517.6,2517.0,2.0258398]
[1646705313315,1.21747952,2517.6,2517.0,0.0388498]
[1646705313813,1.21747952,2517.6,2517.0,0.03355065]
[1646705314111,1.21747952,2517.6,2517.0,0.0388498]
[1646705314512,1.21747952,2517.6,2516.8,3.23966344]
[1646705314811,1.21747952,2517.6,2516.8,0.21979863]
[1646705315012,1.93434283,2517.6,2516.8,0.1986]
[1646705315415,1.93434283,2517.6,2516.6,0.1986]
[1646705315819,1.93434283,2517.6,2516.8,2.18097866]
[1646705315820,1.21747952,2517.6,2516.8,2.18097866]
[1646705316017,1.21747952,2517.6,2516.8,3.17448916]
[1646705316218,1.1371,2517.8,2516.9,1.19214]
[1646705316620,1.1371,2517.8,2517.0,0.99348]
[1646705316817,0.71686331,2517.8,2517.0,0.99348]
[1646705317061,2.3867,2518.0,2516.9,1.19214]
[1646705317062,4.21686331,2517.9,2516.9,1.19214]
[1646705317265,0.96893599,2517.8,2516.9,1.19214]
[1646705317664,0.96893599,2517.8,2516.9,1.19400217]
[1646705318471,0.96893599,2517.8,2516.9,1.78240356]
[1646705318668,0.71686331,2517.9,2517.2,1.08428275]
[1646705318867,2.3867,2518.0,2517.2,1.08428275]
[1646705318868,3.10356331,2518.0,2517.2,1.08428275]
[1646705319068,0.71686331,2517.9,2517.2,1.08428275]
[1646705319470,3.30216331,2518.0,2517.2,1.08428275]
[1646705319968,2.3867,2518.0,2517.2,1.08428275]
[1646705320267,1.17559735,2518.1,2517.2,1.08428275]
[1646705320918,1.1703,2518.1,2517.2,1.08428275]
[1646705321124,1.1703,2518.1,2517.6,1.06045095]
[1646705321319,0.00529748,2518.1,2517.6,1.06045095]
[1646705322017,0.00529748,2518.1,2517.2,0.00191545]
[1646705322217,1.7662461,2518.3,2517.1,1.7163]
[1646705322218,5.2662461,2518.3,2517.1,1.7163]
[1646705322418,0.00511897,2518.1,2517.1,1.42571545]
[1646705323020,1.11301028,2517.8,2517.1,2.58651746]
[1646705323219,1.11301028,2517.8,2517.1,1.35930201]
[1646705323422,1.11301028,2517.8,2517.1,2.35273201]
[1646705323822,0.00511863,2518.1,2517.1,2.35273201]
[1646705324563,0.71686331,2518.2,2517.2,0.99342]
[1646705324764,0.00511863,2518.1,2517.2,0.99342]
[1646705324964,0.97188787,2518.0,2517.2,0.99342]
[1646705328910,0.97188787,2518.0,2517.3,0.1986]
[1646705329314,0.71686331,2518.1,2517.5,1.06728074]
[1646705329512,0.71686331,2518.2,2517.5,1.06728074]
[1646705329714,1.2085,2518.3,2517.5,1.06728074]
[1646705329715,0.0050352,2518.1,2517.5,1.06728074]
[1646705329913,0.0050352,2518.1,2517.6,0.1985]
[1646705330514,1.74077444,2518.5,2517.6,0.1985]
[1646705330515,1.02391113,2518.5,2517.6,0.1985]
[1646705330916,0.00503554,2518.1,2517.6,0.1985]
[1646705331221,0.87438775,2518.0,2517.6,1.1917407]
[1646705331419,0.87438775,2518.0,2517.6,2.1849907]
[1646705332063,0.87438775,2517.9,2517.7,1.98624]
[1646705332263,0.00344247,2518.1,2517.7,1.98624]
[1646705332461,0.97057821,2518.1,2517.8,0.99315]
[1646705332662,0.87466864,2518.0,2517.6,0.1985]
[1646705332863,0.87466864,2518.0,2517.2,0.00191545]
[1646705333067,0.87466864,2518.0,2517.2,0.7251597]
[1646705333466,0.87466864,2518.0,2517.2,1.7185797]
[1646705333665,1.21815133,2517.7,2517.2,0.99342]
[1646705333870,0.87466864,2517.6,2517.2,1.9868188]
[1646705334067,0.87466864,2517.5,2517.3,0.72597493]
[1646705334366,4.22189857,2518.1,2517.3,0.72597493]
[1646705334367,0.87466864,2517.4,2517.3,0.72597493]
[1646705334571,0.79790726,2517.2,2517.1,0.00191545]
[1646705334766,0.79790726,2517.2,2517.1,0.72608524]
[1646705335167,0.79790726,2517.2,2517.1,1.80098674]
[1646705336019,0.79790726,2517.2,2517.1,0.72608524]
[1646705336020,1.67332108,2517.2,2517.1,0.72608524]
[1646705336419,1.67332108,2517.2,2516.9,0.00503657]
[1646705336616,0.87541382,2517.1,2517.0,0.72673145]
[1646705336815,0.87541382,2517.1,2516.9,0.72673145]
[1646705337116,0.87541382,2517.1,2516.9,0.00503684]
[1646705337817,0.87541382,2517.1,2516.8,0.1986]
[1646705338215,0.87541382,2517.1,2516.9,0.00503664]
[1646705339017,0.87541382,2517.1,2516.8,0.1986]
[1646705339216,0.87541382,2517.1,2516.9,0.73187475]
[1646705339468,0.87541382,2517.1,2516.9,0.00503664]
[1646705340166,0.87541382,2517.1,2516.8,0.1986]
[1646705340469,0.87541382,2517.1,2516.9,1.80609178]
[1646705340673,0.87541382,2517.1,2517.0,0.72704096]
[1646705341677,0.87541382,2517.1,2516.9,0.73200837]
[1646705341872,0.87541382,2517.1,2517.0,0.72704096]
[1646705342971,0.87541382,2517.1,2516.9,0.73200837]
[1646705343227,0.87541382,2517.1,2517.0,0.72704096]
[1646705344017,0.87541382,2517.1,2516.9,0.73201071]
[1646705344220,0.87541382,2517.1,2517.0,0.72704096]
[1646705346425,0.79790726,2517.2,2516.7,0.99617255]
[1646705346426,0.79790726,2517.2,2516.9,2.89457132]
[1646705346627,0.79790726,2517.2,2516.9,17.20248132]
[1646705346829,0.79790726,2517.2,2516.9,6.37248132]
[1646705347271,0.79790726,2517.2,2516.9,19.49584132]
[1646705347469,0.79790726,2517.2,2516.9,6.06081937]
[1646705347672,0.79790726,2517.2,2517.1,0.90190888]
[1646705348074,0.79790726,2517.2,2517.0,5.2669575]
[1646705348275,3.5,2518.0,2516.9,7.5615343]
[1646705348474,0.1986,2518.2,2517.0,1.2477]
[1646705348673,0.1986,2518.3,2517.0,1.2477]
[1646705348874,0.00503487,2518.1,2517.0,1.2477]
[1646705349176,0.93853445,2517.7,2517.1,1.00740124]
[1646705349774,0.93853445,2517.7,2516.9,6.56514972]
[1646705349975,3.5,2517.6,2516.7,3.43530545]
[1646705350177,0.93853445,2517.7,2516.7,4.42701]
[1646705350830,3.5,2517.8,2516.7,4.42701]
[1646705350831,0.87220513,2517.3,2516.7,5.41119327]
[1646705351036,0.87220513,2517.3,2516.7,0.20051545]
[1646705351232,0.87220513,2517.3,2517.1,0.00159939]
[1646705352231,0.92963494,2516.8,2516.4,0.20041545]
[1646705352430,0.92963494,2516.8,2516.7,0.0201491]
[1646705353332,0.92963494,2516.8,2516.3,0.1986]
[1646705353732,0.92963494,2516.8,2516.6,0.0050368]
[1646705354334,3.1403184,2517.2,2516.6,0.0050368]
[1646705354335,1.1524,2517.2,2516.6,0.0050368]
[1646705354576,3.5,2517.8,2516.7,0.99365]
[1646705354773,0.3,2517.8,2516.7,0.99365]
[1646705354972,3.5,2517.9,2516.7,0.99365]
[1646705355172,3.5,2517.9,2516.8,0.1985]
[1646705355372,0.3,2517.9,2516.8,0.20041545]
[1646705355778,1.18576269,2517.5,2516.9,0.95272258]
[1646705355977,1.18576269,2517.5,2516.8,0.1985]
[1646705356177,1.18576269,2517.5,2517.2,0.00504011]
[1646705356377,4.483e-05,2517.0,2516.8,0.02016382]
[1646705357080,4.483e-05,2517.0,2516.7,0.00191545]
[1646705357276,4.483e-05,2517.0,2516.5,1.98721]
[1646705357876,4.483e-05,2517.0,2516.5,2.9809]
[1646705358314,4.483e-05,2517.0,2516.5,16.4109]
[1646705358514,4.483e-05,2517.0,2516.7,12.13]
[1646705358715,4.483e-05,2517.0,2516.8,0.1986]
[1646705359314,4.483e-05,2517.0,2516.8,12.3286]
[1646705359513,4.483e-05,2517.0,2516.8,12.8196]
[1646705359715,4.483e-05,2517.0,2516.8,12.82120301]
[1646705360123,4.483e-05,2517.0,2516.8,17.19482301]
[1646705360319,4.483e-05,2517.0,2516.9,14.11648]
[1646705360519,4.483e-05,2517.0,2516.9,15.53220374]
[1646705360717,4.483e-05,2517.0,2516.9,15.80608]
[1646705360919,4.483e-05,2517.0,2516.9,16.53220374]
[1646705361321,4.483e-05,2517.0,2516.9,15.80608]
[1646705363375,4.483e-05,2517.0,2516.9,19.89589545]
[1646705363573,0.02424695,2517.6,2517.1,0.3934]
[1646705363773,0.02424695,2517.6,2517.3,13.12312]
[1646705363972,0.02424695,2517.6,2517.4,12.8196]
[1646705364177,0.02424695,2517.6,2517.5,12.621]
[1646705364374,0.02424695,2517.6,2517.5,13.213]
[1646705364375,4.695e-05,2517.6,2517.5,13.213]
[1646705364573,4.695e-05,2517.6,2517.5,14.513]
[1646705364773,0.00515135,2517.7,2517.5,14.513]
[1646705364978,0.00515135,2517.7,2517.6,0.1986]
[1646705365174,0.00515135,2517.7,2517.6,0.6896]
[1646705365374,1.07848906,2518.4,2517.6,0.491]
[1646705365818,0.00502066,2517.7,2517.6,0.491]
[1646705366419,0.00502066,2517.7,2517.6,1.4841]
[1646705366624,1.07848906,2518.4,2517.6,2.28452065]
[1646705366919,0.00502062,2517.8,2517.7,1.79358065]
[1646705367522,0.00502062,2517.8,2517.7,2.78674065]
[1646705367918,1.07848906,2518.4,2517.7,2.78674065]
[1646705368119,0.00502055,2517.9,2517.8,0.99319]
[1646705368522,0.80480426,2517.9,2517.8,0.99319]
[1646705369119,0.79978371,2517.9,2517.8,0.99319]
[1646705369320,0.00529784,2518.0,2517.8,1.98635]
[1646705369565,0.00529784,2518.0,2517.8,2.02285594]
[1646705369566,0.79978371,2517.9,2517.8,2.02285594]